bitfinex/quotes_SOLUSD_20241007
["timestamp","ask_amount","ask_price","bid_price","bid_amount"]
[1728327213272,1.0,146.04,145.99,0.4452423]
[1728327213481,20.0,146.01,145.99,0.4452423]
[1728327213683,1.0,146.04,145.99,0.4452423]
[1728327213684,7.8493,146.0,145.99,0.4452423]
[1728327213887,27.8493,146.0,145.99,0.4452423]
[1728327215192,26.8493,146.0,145.99,0.4452423]
[1728327216492,102.11143013,146.0,145.99,0.4452423]
[1728327217381,78.33454613,146.0,145.99,0.4452423]
[1728327219305,26.8493,146.0,145.99,0.4452423]
[1728327220786,6.8493,146.0,145.99,0.4452423]
[1728327223172,26.8493,146.0,145.99,0.4452423]
[1728327223384,78.33454613,146.0,145.99,0.4452423]
[1728327223590,102.11143013,146.0,145.99,4.23e-05]
[1728327223783,102.11143013,146.0,145.95,0.8236266]
[1728327223784,26.8511,145.96,145.95,0.8236266]
[1728327223983,79.33634613,145.96,145.95,0.8236266]
[1728327224604,59.46924549,145.96,145.95,0.8236266]
[1728327225302,1.0,145.98,145.95,0.8236266]
[1728327225476,34.24,146.03,145.95,0.8236266]
[1728327225477,6.8508,145.97,145.95,0.8236266]
[1728327225883,21.0,146.0,145.95,0.8236266]
[1728327226367,6.8503,145.98,145.95,0.8236266]
[1728327226902,31.61814549,146.04,145.96,1.37002131]
[1728327227099,31.61814549,146.04,145.98,6.8502]
[1728327227100,6.8479,146.03,145.98,6.8502]
[1728327227399,1.0,146.02,145.97,6.5226]
[1728327227598,18.1168,146.06,145.97,6.5226]
[1728327228196,6.8494,146.0,145.97,6.5226]
[1728327228383,6.8488,146.01,145.97,13.3732]
[1728327228789,6.8485,146.02,145.98,1.36977807]
[1728327228974,6.8485,146.02,145.97,13.3732]
[1728327229173,20.0,146.05,145.98,1.36968037]
[1728327229174,21.0,146.05,145.98,1.36968037]
[1728327229374,6.8489,146.01,145.98,17.1251]
[1728327229876,6.8479,146.03,145.98,23.9749]
[1728327230071,6.8479,146.03,145.99,8.21913216]
[1728327230295,6.8479,146.03,145.99,1.36963216]
[1728327231195,6.847,146.05,146.01,6.8486]
[1728327231388,6.847,146.05,146.02,1.36946383]
[1728327231890,6.8469,146.06,146.02,1.36946383]
[1728327232071,6.8469,146.05,146.0,23.9717]
[1728327232281,1.0,146.08,146.01,1.3694165]
[1728327232476,7.846,146.08,146.01,1.3694165]
[1728327232693,6.8451,146.09,146.05,6.8469]
[1728327232881,1.0,146.12,146.06,1.36910913]
[1728327233089,17.1064,146.15,146.04,17.1179]
[1728327233090,5.77780967,146.11,146.04,17.1179]
[1728327233280,12.62250967,146.1,146.05,6.8468]
[1728327233601,6.8447,146.1,146.05,6.8468]
[1728327233896,17.1089,146.13,146.04,17.1179]
[1728327234099,6.8459,146.08,146.04,17.1179]
[1728327234486,6.846,146.07,146.04,17.1179]
[1728327234691,6.8493,146.0,145.97,6.5226]
[1728327235186,16.6088,146.11,145.97,6.5226]
[1728327235187,6.8502,145.98,145.97,6.5226]
[1728327235387,6.851,145.97,145.95,0.8236266]
[1728327235585,6.8511,145.96,145.95,0.8236266]
[1728327235898,1.0,146.0,145.95,0.8236266]
[1728327236779,6.8511,145.96,145.95,0.8236266]
[1728327237693,26.8511,145.96,145.95,0.8236266]
[1728327238296,32.66425595,145.96,145.95,0.8236266]
[1728327240302,6.8536,145.91,145.89,1.37071852]
[1728327240477,17.1299,145.95,145.89,8.22511852]
[1728327240478,6.8525,145.94,145.89,8.22511852]
[1728327240677,1.0,145.95,145.88,6.5619]
[1728327240678,5.83196903,145.93,145.88,6.5619]
[1728327240880,21.0,145.95,145.88,6.5619]
[1728327241107,5.83259227,145.94,145.88,6.5619]
[1728327241296,6.8544,145.89,145.86,16.2292]
[1728327241510,1.0,145.88,145.83,6.3495]
[1728327241805,1.0,145.88,145.81,37.09465743]
[1728327241806,6.8573,145.83,145.81,0.8236266]
[1728327241980,1.0,145.86,145.81,0.8236266]
[1728327242182,17.1342,145.91,145.82,1.37132127]
[1728327242383,20.0,145.89,145.82,1.37132127]
[1728327242706,20.0,145.9,145.81,11.24465743]
[1728327243007,6.8559,145.86,145.82,1.37116188]
[1728327243176,17.1304,145.94,145.85,6.8563]
[1728327243528,20.0,145.92,145.86,6.8554]
[1728327243801,20.0,145.92,145.87,6.8553]
[1728327243802,5.84281932,145.91,145.87,6.8553]
[1728327244007,12.69631932,145.91,145.86,6.8558]
[1728327244309,5.84832536,145.9,145.85,16.2412]
[1728327244494,20.7,145.94,145.85,16.2412]
[1728327244698,5.84816132,145.93,145.85,16.2412]
[1728327244893,6.8549,145.88,145.85,16.2412]
[1728327245407,6.8553,145.88,145.85,16.2412]
[1728327246117,6.8539,145.91,145.86,8.22658181]
[1728327246295,6.8545,145.89,145.86,1.37098181]
[1728327246497,0.7,145.93,145.86,1.37098181]
[1728327246498,5.86108737,145.88,145.86,1.37098181]
[1728327246686,16.0951,146.01,145.9,6.854]
[1728327246687,0.7,145.98,145.9,6.854]
[1728327246883,5.86297963,145.97,145.89,6.5632]
[1728327247212,6.8517,145.95,145.9,6.8539]
[1728327247515,12.71527963,145.94,145.91,1.37045018]
[1728327247691,5.77050697,145.93,145.91,1.37045018]
[1728327247893,5.77050697,145.92,145.91,1.37045018]
[1728327248295,0.7,145.98,145.91,8.22395018]
[1728327248599,0.7,145.98,145.9,17.134]
[1728327248600,5.77117793,145.97,145.9,17.134]
[1728327248808,6.47117793,145.96,145.9,23.9879]
[1728327249106,5.77117793,145.95,145.89,6.5632]
[1728327249294,6.8531,145.92,145.89,6.5632]
[1728327249495,6.46910942,145.91,145.85,22.2507]
[1728327249704,6.8553,145.88,145.85,22.2507]
[1728327250806,0.7,145.91,145.82,3.56293083]
[1728327250807,6.8564,145.85,145.82,3.56293083]
[1728327251108,20.0,145.91,145.83,1.37125569]
[1728327251307,20.0,145.94,145.83,1.37125569]
[1728327251308,6.8545,145.89,145.84,6.8568]
[1728327251512,6.8545,145.89,145.85,1.37098854]
[1728327251721,6.8548,145.89,145.85,1.37098854]
[1728327251908,6.8548,145.89,145.85,1.37089026]
[1728327252104,0.7,145.91,145.85,1.37089026]
[1728327252323,20.0,145.94,145.85,1.37089026]
[1728327252324,0.7,145.93,145.85,1.37089026]
[1728327252503,6.8531,145.92,145.86,17.1391]
[1728327252708,6.8531,145.92,145.87,1.37066926]
[1728327253015,17.1259,145.98,145.87,1.37066926]
[1728327253219,6.8514,145.96,145.92,6.853]
[1728327253421,6.8508,145.97,145.93,1.37036972]
[1728327253732,5.76642381,145.96,145.94,6.8521]
[1728327254035,6.8503,145.98,145.95,1.37011743]
[1728327254210,0.7,146.01,145.95,1.37011743]
[1728327254211,6.8511,145.96,145.95,1.37011743]
[1728327254453,12.61757964,145.97,145.9,6.3648]
[1728327254616,6.8511,145.97,145.92,6.8529]
[1728327254811,6.8511,145.97,145.93,6.8524]
[1728327255016,0.7,145.99,145.94,8.22171735]
[1728327255205,0.7,145.99,145.93,17.1304]
[1728327255206,5.76720003,145.98,145.93,17.1304]
[1728327255412,6.8498,145.99,145.95,6.8516]
[1728327255635,12.61962932,145.98,145.93,17.1304]
[1728327255814,5.77037474,145.97,145.9,23.4992]
[1728327256009,5.77010298,145.96,145.91,6.8531]
[1728327256214,6.8515,145.96,145.91,6.8531]
[1728327256515,6.8515,145.96,145.9,23.4992]
[1728327256717,6.8515,145.96,145.91,6.8534]
[1728327257044,20.7,145.99,145.9,23.4992]
[1728327257212,6.8524,145.94,145.9,6.3648]
[1728327257735,17.8265,145.98,145.9,1.37045047]
[1728327257736,17.1286,145.96,145.9,1.37045047]
[1728327257935,6.8531,145.92,145.9,1.37045047]
[1728327258115,0.7,145.95,145.9,1.37045047]
[1728327258433,6.8526,145.93,145.9,1.37045047]
[1728327258620,6.8526,145.93,145.89,15.5583]
[1728327259112,0.7,145.95,145.89,15.5583]
[1728327259441,6.8537,145.91,145.9,3.56293083]
[1728327259630,51.39106331,145.94,145.86,30.0316]
[1728327259816,51.39106331,145.94,145.87,6.8554]
[1728327260022,51.39106331,145.94,145.88,8.22543212]
[1728327260218,51.39106331,145.94,145.88,6.8548]
[1728327260535,51.39106331,145.94,145.86,30.0312]
[1728327260827,51.39106331,145.94,145.86,6.0369]
[1728327260828,20.0,145.93,145.86,6.0369]
[1728327261036,6.8565,145.85,145.83,3.56293083]
[1728327261217,6.8563,145.85,145.84,3.56293083]
[1728327261421,58.24736331,145.85,145.84,3.56293083]
[1728327261740,6.8557,145.87,145.83,3.56293083]
[1728327261984,51.39106331,145.88,145.82,6.1128]
[1728327262148,6.8572,145.83,145.82,6.1128]
[1728327262321,6.8572,145.83,145.81,4.38655743]
[1728327262517,6.8569,145.84,145.81,0.8236266]
[1728327262720,6.8574,145.83,145.81,0.8236266]
[1728327263035,6.8577,145.82,145.81,0.8236266]
[1728327263213,58.24876331,145.82,145.81,0.8236266]
[1728327263836,20.0,145.81,145.77,3.56293083]
[1728327264012,6.8592,145.79,145.77,3.56293083]
[1728327264214,6.8587,145.8,145.76,3.56293083]
[1728327264412,51.39106331,145.84,145.77,4.93473111]
[1728327264636,20.0,145.83,145.77,4.93473111]
[1728327264854,6.8578,145.82,145.77,8.23170028]
[1728327265011,6.8578,145.82,145.77,6.8599]
[1728327265435,6.8578,145.82,145.77,10.42283083]
[1728327265614,6.8578,145.82,145.77,6.8599]
[1728327265822,6.8578,145.82,145.77,10.42283083]
[1728327266229,51.39106331,145.84,145.77,3.56293083]
[1728327266435,6.8582,145.81,145.77,3.56293083]
[1728327266645,6.8573,145.83,145.78,8.23091516]
[1728327266837,40.8486,145.9,145.78,1.37171516]
[1728327267041,25.75248911,145.87,145.79,17.1469]
[1728327267351,6.8582,145.81,145.78,3.56293083]
[1728327267559,6.8576,145.83,145.78,3.56293083]
[1728327267847,6.8578,145.82,145.78,3.56293083]
[1728327268954,51.39106331,145.84,145.78,10.42253083]
[1728327269253,6.8569,145.84,145.79,8.2305933]
[1728327269435,6.8569,145.84,145.79,11.79352413]
[1728327269636,20.0,145.87,145.82,3.56293083]
[1728327269845,68.52646331,145.9,145.83,4.93433807]
[1728327270030,6.8555,145.87,145.83,11.79153807]
[1728327270236,6.8553,145.88,145.83,10.42013083]
[1728327270434,6.8545,145.89,145.84,11.7903445]
[1728327270736,6.8526,145.93,145.84,4.9340445]
[1728327270941,5.74040209,145.92,145.88,17.1365]
[1728327271142,6.852,145.95,145.91,6.8535]
[1728327271449,51.39106331,145.97,145.86,34.2792]
[1728327271450,6.8536,145.91,145.86,10.41863083]
[1728327271663,5.73903177,145.9,145.86,6.8557]
[1728327271842,5.73903177,145.89,145.85,20.70323083]
[1728327272153,6.8539,145.91,145.86,6.8558]
[1728327272463,5.73758693,145.9,145.86,3.56293083]
[1728327272749,6.8554,145.87,145.85,3.56293083]
[1728327272954,6.8558,145.86,145.85,3.56293083]
[1728327273336,26.8558,145.86,145.85,3.56293083]
[1728327273537,71.39106331,145.83,145.78,7.12586167]
[1728327273733,6.8585,145.81,145.78,7.12586167]
[1728327274052,71.39106331,145.83,145.78,7.12586167]
[1728327274053,6.8591,145.79,145.78,7.12586167]
[1728327274257,6.8583,145.81,145.78,7.12586167]
[1728327274447,6.8583,145.81,145.79,7.09175793]
[1728327274760,68.53116331,145.86,145.8,1.37171195]
[1728327274963,68.53116331,145.86,145.8,8.23031195]
[1728327274964,51.39106331,145.86,145.8,8.23031195]
[1728327275144,6.8567,145.85,145.81,6.858]
[1728327275345,6.8567,145.85,145.82,1.37136129]
[1728327275547,6.8559,145.86,145.82,1.37136129]
[1728327275737,51.39106331,145.89,145.83,6.8572]
[1728327275941,51.39106331,145.89,145.84,1.37112906]
[1728327276143,51.39106331,145.89,145.82,1.37112611]
[1728327276364,6.8559,145.86,145.82,8.46288404]
[1728327276558,6.8572,145.83,145.82,7.09175793]
[1728327276764,6.8567,145.85,145.82,7.09175793]
[1728327277140,68.52796331,145.89,145.82,7.09175793]
[1728327277369,6.8558,145.86,145.82,7.09175793]
[1728327277749,6.8572,145.83,145.82,7.09175793]
[1728327277951,51.39106331,145.86,145.82,7.09175793]
[1728327278253,6.8572,145.84,145.81,7.09175793]
[1728327278455,6.8572,145.83,145.82,7.09175793]
[1728327279072,51.39106331,145.86,145.82,7.09175793]
[1728327279364,6.8564,145.85,145.83,7.09175793]
[1728327279544,6.8555,145.87,145.84,1.37127324]
[1728327279960,51.39106331,145.89,145.84,8.22807324]
[1728327280162,6.8545,145.89,145.84,15.31983117]
[1728327280338,51.39106331,145.95,145.86,6.8555]
[1728327280339,68.52026331,145.95,145.86,6.8555]
[1728327280547,6.8544,145.9,145.85,23.9963]
[1728327280748,68.52026331,145.95,145.86,1.37082839]
[1728327281060,6.8531,145.92,145.86,1.37082805]
[1728327281247,5.75323093,145.91,145.86,1.37082805]
[1728327281443,68.52026331,145.95,145.87,6.8554]
[1728327281661,68.52026331,145.95,145.85,24.23185793]
[1728327281662,6.8537,145.91,145.86,6.8558]
[1728327281860,6.8541,145.9,145.86,6.8558]
[1728327282248,6.8536,145.91,145.86,6.8558]
[1728327282570,6.854,145.9,145.85,31.08805793]
[1728327283174,6.854,145.9,145.86,8.22662669]
[1728327283345,6.854,145.9,145.86,1.37082669]
[1728327283541,20.0,145.94,145.86,1.37082669]
[1728327283768,5.76162995,145.93,145.86,1.37082669]
[1728327283967,5.76162995,145.92,145.86,1.37082669]
[1728327284171,5.76162995,145.91,145.86,1.37082669]
[1728327284350,5.76162995,145.9,145.86,1.37082669]
[1728327284555,6.8543,145.9,145.86,1.37082669]
[1728327284753,20.0,145.94,145.84,21.9532]
[1728327284955,51.39106331,145.9,145.83,7.09476114]
[1728327285174,6.8563,145.86,145.82,7.09476114]
[1728327285369,6.8558,145.86,145.83,7.09476114]
[1728327285577,51.39106331,145.87,145.83,7.09476114]
[1728327285745,6.8562,145.86,145.82,7.09476114]
[1728327285950,51.39106331,145.87,145.82,7.09476114]
[1728327286250,51.39106331,145.87,145.83,7.09476114]
[1728327286468,6.856,145.86,145.83,7.09476114]
[1728327286777,6.8549,145.88,145.83,31.09426114]
[1728327286973,6.8545,145.89,145.84,6.8564]
[1728327287173,6.8517,145.95,145.89,17.1355]
[1728327287480,5.76562467,145.94,145.89,39.5698]
[1728327287671,5.76562467,145.93,145.91,6.8533]
[1728327287864,5.76562467,145.92,145.91,6.8533]
[1728327288060,5.76573022,145.94,145.93,6.8526]
[1728327288268,12.61632681,145.98,145.93,8.22283476]
[1728327288467,6.8503,145.98,145.93,8.22283476]
[1728327288781,68.51266331,146.02,145.93,8.22283476]
[1728327288982,51.39106331,146.02,145.95,17.128]
[1728327289188,51.39106331,146.05,145.98,6.8502]
[1728327289394,1.18023905,146.11,145.99,7.76695829]
[1728327289594,51.39106331,146.08,145.99,7.76695829]
[1728327289889,51.39106331,146.08,145.99,24.89055829]
[1728327290062,6.8483,146.02,145.99,6.3973]
[1728327290486,51.39106331,146.02,145.95,23.6663]
[1728327290791,6.8492,146.01,145.96,6.8511]
[1728327290991,51.39106331,146.02,145.95,23.6663]
[1728327291171,6.8498,145.99,145.95,23.6663]
[1728327291673,6.8493,146.0,145.95,30.5179]
[1728327291864,6.8498,145.99,145.95,23.6663]
[1728327292460,51.39106331,146.02,145.95,6.5382]
[1728327292781,6.8494,146.0,145.96,1.37008745]
[1728327292991,6.8494,146.0,145.95,13.3897]
[1728327293565,6.8494,146.0,145.96,7.09476114]
[1728327294285,6.8494,146.0,145.97,7.09476114]
[1728327295466,51.39106331,146.02,145.98,1.36994795]
[1728327295773,6.8492,146.01,145.97,7.09476114]
[1728327296178,6.8492,146.01,145.97,13.94536114]
[1728327296382,51.39106331,146.02,145.98,1.36985395]
[1728327296570,6.8497,145.99,145.98,7.09476114]
[1728327297497,6.8497,145.99,145.95,20.78992334]
[1728327297498,6.8502,145.98,145.97,7.09476114]
[1728327297675,51.39106331,145.99,145.97,7.09476114]
[1728327297879,6.8502,145.98,145.95,14.25172334]
[1728327298080,6.8511,145.96,145.95,14.25172334]
[1728327298479,68.51576331,145.99,145.91,13.98021071]
[1728327298684,68.51576331,145.99,145.91,7.12691071]
[1728327298964,68.51576331,145.99,145.9,13.64271071]
[1728327299182,20.0,145.98,145.9,20.49641071]
[1728327299383,68.51576331,145.99,145.9,13.64271071]
[1728327299590,6.8511,145.96,145.92,6.8529]
[1728327299895,6.8512,145.96,145.92,1.3704112]
[1728327300263,6.8507,145.97,145.92,1.3704112]
[1728327300471,6.8507,145.97,145.93,6.8524]
[1728327300795,6.8498,145.99,145.95,6.8516]
[1728327300976,68.50886331,146.05,145.96,1.36996555]
[1728327301166,6.8472,146.05,146.0,6.8489]
[1728327301366,6.8472,146.05,146.01,8.2180392]
[1728327301760,51.39106331,146.09,146.01,1.3694392]
[1728327302085,51.39106331,146.09,146.0,6.1429]
[1728327302261,6.8456,146.08,146.03,6.8478]
[1728327302660,6.8441,146.11,146.06,6.8464]
[1728327303367,6.8446,146.1,146.05,23.9635]
[1728327303566,6.8446,146.1,146.06,1.36898319]
[1728327303776,6.8446,146.1,146.06,8.21538319]
[1728327303975,6.8441,146.12,146.06,8.21538319]
[1728327304193,6.8443,146.11,146.06,6.8464]
[1728327304371,51.39106331,146.13,146.05,17.1166]
[1728327304688,6.8447,146.1,146.05,23.9631]
[1728327304906,6.8447,146.1,146.06,7.12691071]
[1728327305188,6.8447,146.1,146.06,13.97331071]
[1728327305383,6.8447,146.1,146.06,7.12691071]
[1728327305596,6.8447,146.1,146.05,31.09041071]
[1728327305771,6.8447,146.1,146.05,23.9635]
[1728327306161,68.49976331,146.13,146.0,6.1429]
[1728327306368,51.39106331,146.1,146.02,17.1207]
[1728327306665,6.8479,146.03,146.0,6.1429]
[1728327306974,51.39106331,146.04,146.0,6.1429]
[1728327307171,6.8484,146.02,146.0,6.1429]
[1728327307376,6.8488,146.01,146.0,6.1429]
[1728327308379,6.8488,146.01,145.97,16.3601]
[1728327308380,6.8493,146.0,145.97,16.3601]
[1728327308591,51.39106331,146.04,145.97,30.61182334]
[1728327308898,6.8502,145.98,145.96,20.74282334]
[1728327309077,6.8507,145.97,145.96,14.25172334]
[1728327309391,6.8511,145.96,145.95,14.25172334]
[1728327311688,51.39106331,145.98,145.95,14.25172334]
[1728327311892,6.8503,145.98,145.95,14.25172334]
[1728327312064,51.39106331,146.02,145.96,1.37008398]
[1728327312270,6.8493,146.0,145.98,7.13326043]
[1728327312592,58.24076331,145.99,145.98,7.13326043]
[1728327313163,6.8497,145.99,145.98,7.13326043]
[1728327314391,51.39106331,145.99,145.91,7.13292638]
[1728327314689,51.39106331,145.94,145.87,61.14648398]
[1728327314894,51.39106331,145.94,145.87,32.7195]
[1728327315198,6.854,145.9,145.87,15.5813]
[1728327316192,51.39106331,145.94,145.87,15.5813]
[1728327316193,6.8536,145.91,145.87,15.5813]
[1728327316373,6.854,145.9,145.87,15.5813]
[1728327316794,6.854,145.9,145.86,6.1125]
[1728327316996,6.854,145.9,145.85,14.25172334]
[1728327317499,51.39106331,145.91,145.85,14.25172334]
[1728327317692,6.8558,145.86,145.84,14.25172334]
[1728327318192,6.8555,145.87,145.84,14.25172334]
[1728327318597,68.52626331,145.9,145.85,14.25172334]
[1728327318898,6.8558,145.86,145.85,14.25172334]
[1728327319104,6.8554,145.87,145.85,14.25172334]
[1728327319401,6.8558,145.86,145.85,14.25172334]
[1728327319782,6.8554,145.87,145.85,14.25172334]
[1728327319976,51.39106331,145.9,145.85,14.25172334]
[1728327320176,6.8555,145.87,145.85,14.25172334]
[1728327320980,6.8558,145.86,145.85,14.25172334]
[1728327322094,17.1369,145.89,145.78,23.733]
[1728327322298,40.9066,145.91,145.78,23.733]
[1728327322299,51.39106331,145.87,145.78,23.733]
[1728327322502,68.53016331,145.87,145.78,6.5847]
[1728327322672,68.53016331,145.87,145.75,32.6151]
[1728327322673,6.8591,145.79,145.75,32.6151]
[1728327322872,51.39106331,145.81,145.74,6.3948]
[1728327323099,6.8603,145.77,145.74,6.3948]
[1728327323298,51.39106331,145.81,145.71,0.1]
[1728327323299,6.8606,145.76,145.71,6.9628]
[1728327323603,68.53736331,145.81,145.72,1.37221771]
[1728327323781,6.8592,145.79,145.74,6.8614]
[1728327323975,6.8592,145.79,145.75,1.37199886]
[1728327324177,51.39106331,145.81,145.74,1.37200181]
[1728327324382,51.39106331,145.81,145.74,8.23330181]
[1728327324586,6.8592,145.79,145.74,8.23330181]
[1728327324797,6.8592,145.79,145.74,1.37200181]
[1728327325209,51.39106331,145.81,145.73,17.1543]
[1728327325504,6.8611,145.75,145.71,0.1]
[1728327325681,6.8602,145.77,145.71,0.1]
[1728327325881,6.8597,145.78,145.73,6.8619]
[1728327326095,6.8587,145.8,145.75,6.8609]
[1728327326292,6.8597,145.78,145.74,8.23351499]
[1728327326592,6.8597,145.78,145.73,6.8619]
[1728327326803,58.24966331,145.81,145.74,17.1529]
[1728327326978,6.8587,145.8,145.75,6.8609]
[1728327327377,6.8598,145.78,145.74,17.1529]
[1728327327707,6.8597,145.78,145.73,6.8619]
[1728327327991,51.39106331,145.81,145.74,6.8613]
[1728327327992,6.8592,145.79,145.74,6.8613]
[1728327328201,6.8592,145.79,145.74,6.8614]
[1728327328399,51.39106331,145.81,145.73,17.1543]
[1728327328570,6.8582,145.82,145.77,6.86]
[1728327328773,51.39106331,145.84,145.78,8.231178]
[1728327328982,6.8559,145.86,145.78,1.371778]
[1728327329188,6.8564,145.85,145.8,6.8586]
[1728327329389,17.1392,145.87,145.73,51.39106331]
[1728327329597,6.8581,145.82,145.77,6.8598]
[1728327329897,6.8581,145.82,145.77,6.86]
[1728327331182,40.9066,145.91,145.73,17.1548]
[1728327331183,51.39106331,145.81,145.73,17.1548]
[1728327331378,51.39106331,145.81,145.71,0.1]
[1728327331379,68.53726331,145.81,145.72,17.1555]
[1728327331705,6.8593,145.79,145.74,6.8614]
[1728327332207,68.53376331,145.84,145.77,6.86]
[1728327332383,6.8582,145.81,145.76,24.0114]
[1728327332777,6.8582,145.81,145.76,17.1509]
[1728327333001,6.8582,145.81,145.77,8.23173401]
[1728327333199,6.8582,145.81,145.77,6.86]
[1728327333981,6.8582,145.81,145.76,24.0113]
[1728327334203,6.8588,145.8,145.76,24.0113]
[1728327334415,6.8598,145.78,145.73,17.1543]
[1728327334708,6.8598,145.78,145.73,24.0159]
[1728327335080,6.8596,145.78,145.73,24.0158]
[1728327336086,51.39106331,145.81,145.73,24.0158]
[1728327336494,6.8601,145.77,145.73,24.0158]
[1728327337214,51.39106331,145.78,145.71,6.9625]
[1728327337417,6.8602,145.77,145.73,6.8619]
[1728327338096,6.8597,145.78,145.74,8.23367051]
[1728327338614,6.8597,145.78,145.74,1.37217051]
[1728327339004,6.8597,145.78,145.73,6.8618]
[1728327339212,31.6769205,145.81,145.73,6.8618]
[1728327339528,6.8607,145.76,145.72,24.0181]
[1728327339706,6.8591,145.8,145.75,6.8609]
[1728327339905,6.8592,145.79,145.75,6.8609]
[1728327340214,6.8591,145.8,145.75,6.8609]
[1728327340599,6.8593,145.79,145.75,6.8609]
[1728327341398,31.6769205,145.81,145.74,17.1533]
[1728327342224,40.9066,145.91,145.75,1.3719074]
[1728327342518,6.8555,145.87,145.83,6.8572]
[1728327342722,6.6379,145.91,145.84,1.37120309]
[1728327342723,6.855,145.88,145.84,1.37120309]
[1728327342897,48.8116205,145.91,145.84,1.37121941]
[1728327343103,6.8546,145.89,145.84,6.8564]
[1728327343307,6.8546,145.89,145.84,1.37113284]
[1728327343618,6.8541,145.9,145.84,1.37113284]
[1728327344012,6.8536,145.91,145.86,6.8558]
[1728327344204,31.6769205,145.95,145.85,17.1402]
[1728327344423,6.8539,145.91,145.86,6.8555]
[1728327345001,31.6769205,145.95,145.8,34.2932]
[1728327345299,31.6769205,145.95,145.88,6.8548]
[1728327345518,31.6769205,145.95,145.86,17.1388]
[1728327345519,6.8536,145.91,145.86,17.1388]
[1728327345720,6.855,145.88,145.83,24.0]
[1728327346024,6.8558,145.86,145.81,30.634684]
[1728327346327,6.8558,145.86,145.81,6.8581]
[1728327346500,31.6769205,145.89,145.8,51.4394]
[1728327346501,6.8564,145.85,145.8,24.0048]
[1728327347127,31.6769205,145.86,145.79,15.1252]
[1728327347312,6.8567,145.85,145.8,6.8582]
[1728327347827,6.8568,145.84,145.79,39.1314]
[1728327348001,31.6769205,145.83,145.76,17.1509]
[1728327348205,6.8583,145.81,145.77,6.86]
[1728327348407,6.8578,145.82,145.78,13.3855]
[1728327349498,6.8564,145.85,145.8,6.8583]
[1728327349718,17.1365,145.89,145.78,30.534]
[1728327349913,6.8573,145.83,145.78,30.534]
[1728327350125,6.8573,145.83,145.79,6.8591]
[1728327350323,40.4933,145.9,145.78,6.526]
[1728327350501,17.1398,145.86,145.78,6.526]
[1728327350701,6.8573,145.83,145.79,6.859]
[1728327351439,6.8587,145.8,145.76,17.1508]
[1728327351606,17.1426,145.84,145.76,17.1508]
[1728327351809,17.1426,145.84,145.74,22.6102]
[1728327351810,6.8592,145.79,145.74,22.6102]
[1728327352064,6.8592,145.79,145.75,6.8609]
[1728327352706,6.8592,145.79,145.76,1.37190928]
[1728327353109,6.8592,145.79,145.75,6.8609]
[1728327354534,6.8588,145.8,145.74,22.6102]
[1728327354718,6.8588,145.8,145.76,6.8605]
[1728327356236,40.8581,145.94,145.78,23.776884]
[1728327356421,5.75481854,145.92,145.79,1.37130671]
[1728327356620,6.8544,145.9,145.85,6.8563]
[1728327356814,6.8544,145.9,145.83,23.2841]
[1728327356815,5.75481854,145.89,145.83,23.2841]
[1728327357019,6.8544,145.9,145.85,6.8563]
[1728327357320,6.8544,145.9,145.83,23.2841]
[1728327357321,6.8544,145.9,145.86,1.37096316]
[1728327357510,6.8531,145.92,145.87,6.8553]
[1728327357709,5.76095749,145.91,145.87,1.37086402]
[1728327357918,6.8546,145.89,145.83,21.245]
[1728327358210,6.8544,145.89,145.85,6.8562]
[1728327358713,6.855,145.88,145.84,17.1413]
[1728327359430,20.0,145.92,145.83,21.245]
[1728327359638,6.8564,145.85,145.83,21.245]
[1728327360208,17.1332,145.92,145.83,21.245]
[1728327360410,6.8553,145.88,145.84,1.37114597]
[1728327360620,34.263,145.93,145.83,21.245]
[1728327360910,6.856,145.86,145.83,21.245]
[1728327361125,17.136,145.9,145.84,1.37124225]
[1728327361325,5.76701517,145.89,145.84,1.37124225]
[1728327361638,17.1285,145.96,145.85,23.776884]
[1728327361811,12.62206363,145.95,145.9,6.8536]